Cogmind - Beta 16 @@@ ROGUE MODE // 2026.01.19 @ 21:58:48 // Winter2019/RPGLIKE Player: Gallgagger Result: Destroyed by G-47 Trooper with Particle Gun Performance ------------- Evolutions (0) 0 Regions Visited (2) 400 Robots Destroyed (0) 0 Value Destroyed (0) 0 Prototype IDs (0) 0 Alien Tech Used (0) 0 Bonus (0) 0 TOTAL SCORE: 400 Bonus ------- None Cogmind --------- Core Integrity 0/1700 Matter 300/300 Energy 99/100 System Corruption 1% Temperature Cool (9) Movement Core (50) Location -10/Mines Parts ------- > --- POWER (1) -------- (None) > --- PROPULSION (1) --- (None) > --- UTILITY (1) ------ (None) > --- WEAPON (1) ------- (None) > --- INVENTORY (0) ---- (None) Peak State ------------ None Favorites ----------- Power None Propulsion None Utility None Weapon None Build | -11 -10 -10 ------- Run | Yrd Mat Min Slots Evolved . | . . . Power . | . . . Propulsion . | . . . Utility . | . . . Weapon . | . . . Parts Attached . | . . . Power . | . . . Engine . | . . . Core . | . . . Reactor . | . . . Propulsion . | . . . Treads . | . . . Leg . | . . . Wheel . | . . . Hover . | . . . Flight . | . . . Utility . | . . . Device . | . . . Storage . | . . . Processor . | . . . Hackware . | . . . Protection . | . . . Artifact . | . . . Weapon . | . . . Energy Gun . | . . . Energy Cannon . | . . . Ballistic Gun . | . . . Ballistic Cannon . | . . . Launcher . | . . . Special Weapon . | . . . Impact Weapon . | . . . Slashing Weapon . | . . . Piercing Weapon . | . . . Special Melee Weapon . | . . . Unidentified Prototypes . | . . . Parts Lost . | . . . Power . | . . . Propulsion . | . . . Utility . | . . . Weapon . | . . . Highest Loss Streak . | . . . To Critical Strikes . | . . . Average Backups . | . . . Power . | . . . Propulsion . | . . . Utility . | . . . Weapon . | . . . Tool/Special . | . . . Unused Backups . | . . . Power . | . . . Propulsion . | . . . Utility . | . . . Weapon . | . . . Tool/Special . | . . . Average Slot Usage (%) . | . . . Peak Build Rating . | . . . Average Rating . | . . . On Entrance . | . . . Avg Prop Armor Cover (%) . | . . . Naked Turns 321 | . 70 251 Heaviest Build . | . . . Greatest Support 3 | 3 3 3 Greatest Overweight (x) . | . . . Average Overweight (x) . | . . . Largest Inventory Capacity . | . . . Average Capacity . | . . . Most Carried . | . . . Average Carried . | . . . Final Capacity . | . . . Final Carried . | . . . Class Distribution -------------------- 100% | Mutant Dominant Class ---------------- Mutant | -10/Materials Mutant | -10/Mines Resources | -11 -10 -10 ----------- Run | Yrd Mat Min Matter Collected 185 | 57 . 128 Remotely . | . . . Salvage Created . | . . . Parts . | . . . Haulers Intercepted . | . . . Recyclers Shooed . | . . . Parts Field Recycled . | . . . Retrieved Matter . | . . . Parts Self-Destructed . | . . . Prevented . | . . . Parts Restored . | . . . Kills | -11 -10 -10 ------- Run | Yrd Mat Min Combat Hostiles Destroyed . | . . . Classes Destroyed . | . . . Best Kill Streak . | . . . Combat Bots Only . | . . . Max Kills in Single Turn . | . . . Gunslinging . | . . . Exploded . | . . . Melee . | . . . Uniques/NPCs Destroyed . | . . . Combat | -11 -10 -10 -------- Run | Yrd Mat Min Hostile Shots Fired 297 | . 33 264 Missed 125 | . 11 114 Hits 172 | . 22 150 Projectile 172 | . 22 150 Critical Strikes 1 | . . 1 Damage Taken 1708 | . 200 1508 Core 1708 | . 200 1508 Absorbed by Shields . | . . . Core Remaining (%) 100 | 100 . . Volleys Fired . | . . . Largest . | . . . Hottest . | . . . Shots Fired . | . . . Gun . | . . . Cannon . | . . . Launcher . | . . . Special . | . . . Kinetic . | . . . Thermal . | . . . Explosive . | . . . Electromagnetic . | . . . Robot Hit Streak . | . . . Robot Miss Streak . | . . . Penetration Max . | . . . Secondary Targets . | . . . Shots Hit Robots . | . . . Core Hits 4 | . . 4 Critical Kills . | . . . Critical Parts Destroyed . | . . . Critical Strikes . | . . . Melee Attacks . | . . . Impact . | . . . Slashing . | . . . Piercing . | . . . Sneak Attacks . | . . . Combat Hostiles . | . . . Follow-up Attacks . | . . . Damage Inflicted 119 | . 4 115 Guns . | . . . Cannons . | . . . Explosions . | . . . Melee . | . . . Ramming 119 | . 4 115 Kinetic . | . . . Thermal . | . . . Explosive . | . . . Electromagnetic . | . . . Impact . | . . . Slashing . | . . . Piercing . | . . . Highest Corruption 1 | . . 1 Average Corruption 1 | . . 1 Corruption Purged . | . . . Corruption Blocked . | . . . Effects 1 | . . 1 Data Loss (minor) 1 | . . 1 Overload Shots . | . . . Overflow Damage . | . . . Projectiles . | . . . Explosions . | . . . Melee . | . . . Knockbacks 1 | . . 1 Impact 1 | . . 1 Kinetic . | . . . Secondary . | . . . Self-Inflicted Damage 52 | . 1 51 Shots . | . . . Rammed 34 | . 5 29 Targets Rammed 34 | . 5 29 Kicked . | . . . Crushed . | . . . Highest Temperature . | . . . Average Temperature . | . . . Received Heat Transfer 222 | . 51 171 Siege Activations . | . . . Martial Activations . | . . . Shielding Activations . | . . . Robots Disrupted . | . . . Combat Hostiles . | . . . Robots Corrupted . | . . . Combat Hostiles . | . . . Parts Fried . | . . . Impact Corruptions . | . . . Robots Melted . | . . . Combat Hostiles . | . . . Parts Melted . | . . . Heat Transferred . | . . . Parts Sabotaged . | . . . Parts Stolen . | . . . Parts Stripped . | . . . Power Chain Reactions . | . . . Alert | -11 -10 -10 ------- Run | Yrd Mat Min Maximum Alert Level . | . . . Low Security (%) 100 | 100 100 100 Level 1 . | . . . Level 2 . | . . . Level 3 . | . . . Level 4 . | . . . Level 5 . | . . . High Security . | . . . Max Security . | . . . Peak Influence 135 | . . 135 Initial . | . . . Average 58 | . . 76 Influence Increases 180 | . . 180 Lose Combat Pursuer 180 | . . 180 Influence Decreases 100 | . . 100 Time Decay 100 | . . 100 Squads Dispatched 1 | . . 1 Investigation . | . . . Extermination . | . . . Reinforcement . | . . . Assault 1 | . . 1 Garrison . | . . . Intercept . | . . . Searches Triggered . | . . . Construction Impeded . | . . . Haulers Reinforced . | . . . Active Scanning Responses . | . . . Cargo Convoy Interrupts . | . . . Stealth | -11 -10 -10 --------- Run | Yrd Mat Min Distress Signals . | . . . Communications Jammed . | . . . Distress Signals . | . . . Times Spotted 41 | . 8 33 Peak Tracking Total 16 | . 8 16 Tactical Retreats 5 | . . 5 Traps | -11 -10 -10 ------- Run | Yrd Mat Min Traps Triggered . | . . . Indirectly . | . . . Trap Hack Attempts . | . . . Triggered . | . . . Disarmed . | . . . Reprogrammed . | . . . Reused . | . . . Traps Extracted . | . . . Installed . | . . . Triggered . | . . . Machines | -11 -10 -10 ---------- Run | Yrd Mat Min Machines Disabled . | . . . Max in Single Turn . | . . . Machines Repaired . | . . . Machines Dismantled . | . . . Machines Sabotaged . | . . . Overloaded Fab Kills . | . . . Hacking | -11 -10 -10 --------- Run | Yrd Mat Min Machines Accessed . | . . . Terminals . | . . . Fabricators . | . . . Repair Stations . | . . . Recycling Units . | . . . Scanalyzers . | . . . Garrison Access . | . . . Total Hacks . | . . . Successful . | . . . Failed . | . . . Catastrophic . | . . . Database Lockouts . | . . . Manual . | . . . Terminals . | . . . Fabricators . | . . . Repair Stations . | . . . Recycling Units . | . . . Scanalyzers . | . . . Garrison Access . | . . . Terminal Hacks . | . . . Fabricator Hacks . | . . . Repair Station Hacks . | . . . Recycling Unit Hacks . | . . . Scanalyzer . | . . . Garrison Access Hacks . | . . . Unauthorized Hacks . | . . . Terminals . | . . . Fabricators . | . . . Repair Stations . | . . . Recycling Units . | . . . Scanalyzers . | . . . Garrison Access . | . . . Data Cores Recovered . | . . . Used . | . . . Hacking Detections . | . . . Full Trace Events . | . . . Feedback Events . | . . . Feedback Blocked . | . . . Robot Schematics Acquired . | . . . Robots Built . | . . . Authchips . | . . . Time . | . . . Total Robot Build Rating . | . . . Part Schematics Acquired . | . . . Parts Built . | . . . Authchips . | . . . Time . | . . . Total Part Build Rating . | . . . Part Studies Acquired . | . . . Parts Repaired . | . . . Time . | . . . Parts Recycled . | . . . Recycled Matter . | . . . Retrieved Matter . | . . . Retrieved Components . | . . . Parts Scanalyzed . | . . . Part Schematics Acquired . | . . . Parts Damaged . | . . . Bothacking | -11 -10 -10 ------------ Run | Yrd Mat Min Used RIF Installer . | . . . Robots Hacked . | . . . Non-combat . | . . . Combat . | . . . Robot Hacks Applied . | . . . Relay Couplers Released . | . . . Fabnet Peak Effective % . | . . . Robots Rewired . | . . . Allies Hacked . | . . . Hacks Repelled . | . . . Allies | -11 -10 -10 -------- Run | Yrd Mat Min Total Allies . | . . . Largest Group . | . . . Highest-Rated Group . | . . . Highest-Rated Ally . | . . . Total Orders . | . . . Ally Attacks . | . . . Total Damage . | . . . Kills . | . . . Allies Corrupted . | . . . Allies Melted . | . . . Intel | -11 -10 -10 ------- Run | Yrd Mat Min Active Infowar (turns) . | . . . Robot Analysis Total . | . . . Derelict Logs Recovered . | . . . Drone Launches . | . . . Drone Recoveries . | . . . Exploration | -11 -10 -10 ------------- Run | Yrd Mat Min Turns Passed 330 | 9 70 251 Spaces Moved 592 | 19 130 443 Core 592 | 19 130 443 Treads . | . . . Legs . | . . . Wheels . | . . . Hover . | . . . Flight . | . . . Fastest Speed 50 | 50 50 50 Average Speed 50 | 50 50 50 Slowest Speed 50 | 50 50 50 Overloaded Moves . | . . . Propulsion Burnouts . | . . . Robots Hopped . | . . . Potential Cave-ins . | . . . Cave-ins Triggered . | . . . Exploration Rate (%) 42 | 2 35 89 Regions Visited 2 Branch Regions 1 Pre-discovered Areas 1 | . . 1 Known Exits Taken . | . . . Unknown Exits Taken 2 | 1 1 . Scrap Searched . | . . . Spaces Dug . | . . . Terrain Destroyed . | . . . Melee . | . . . Projectile . | . . . AOE . | . . . Terrain Rammed . | . . . Walls Destroyed . | . . . Machines Disabled . | . . . Actions | -11 -10 -10 --------- Run | Yrd Mat Min Total 624 | 18 134 472 Wait . | . . . Move 590 | 18 129 443 Hop . | . . . Pick Up . | . . . Fast Attach . | . . . Attach . | . . . Detach . | . . . Swap . | . . . Drop . | . . . Fire . | . . . Melee . | . . . Ram 34 | . 5 29 Kick . | . . . Crush . | . . . Escape Stasis . | . . . Rewire . | . . . Trap . | . . . Miscellaneous . | . . . Route ------- -11/Scrapyard -10/Materials (discovered 2 exits: [*Mat] / [*Min]) -10/Mines (discovered 2 exits: [*Mat x2]) History --------- Turn | Location | Event 3 | -11/Scrapyard | Discovered new exit (range 15) 10 | -11/Scrapyard | Entered Materials 58 | -10/Materials | Discovered new exit (range 9) 73 | -10/Materials | Discovered new exit (range 15) 80 | -10/Materials | Entered Mines 95 | -10/Mines | Core integrity fell below 50% 190 | -10/Mines | Core integrity fell below 20% 239 | -10/Mines | Met a Derelict testing a Signal Generator 275 | -10/Mines | Discovered new exit (range 12) 279 | -10/Mines | Learned location of Storage (-9) 305 | -10/Mines | Build established: Mutant 313 | -10/Mines | Discovered new exit (range 8) 319 | -10/Mines | Received a Rocket Launcher from a helpful Derelict 331 | -10/Mines | Destroyed by G-47 Trooper with Particle Gun Last Messages --------------- 00295_ K-01 Serf collects debris. 00313_ A derelict emerges from the shadows. 00313_ EXIT=FOUND 00314_ ZB-7KZ(g): "Some of my friends down here think you need a mining laser when you travel the depths." 00315_ ZB-7KZ(g): "You know what I say? NO!" 00316_ ZB-7KZ(g): "Everyone knows a good old rocket launcher goes a long way." 00317_ ZB-7KZ(g): "Need to get rid of a swarm? Done. Need a big hole in the wall? Done." 00318_ ZB-7KZ(g): "Need a small hole in the wall? Leave that to the mining laser wimps, I say!" 00318_ S-10 Pest destroyed. 00318_ ZB-7KZ(g) suffers critical hit (Destroy). 00319_ ZB-7KZ(g): "Would you like a rocket launcher? I know I would if I were you, so I'm going to lend you mine." 00319_ ZB-7KZ(g) slips back into the shadows. 00323_ Slammed into G-47 Trooper. 00325_ Destabilizing: Core damaged (-85). 00325_ G-34 Mercenary destroyed. Map ----- +----------------------------------------------------+ | ?????????????????????????????????????????????????? | | ##????????????######????????????????###??????????? | | ##???######?## ################# ###????????? | | ##??# ### ## ##???????? | | #### %% #???????? | | ## ######### !!! ##???????? | | # ## #??????# !!!! ##????????? | | ## ## #?????# !! ! ##?????????? | | # #### #?????## !!!! ##?????????? | | ## ##??#### #??????# ##????????? | | #### #??????## ##??????##### #????????? | | #??# ## #???????# ##??????????# #????????? | | ##?# ## #??????? #???????????# ##????????? | | ### #?????? ???????????## ##?????????? | | #### #????? #???????????####??????????? | | #?# #????? ##?????????????????????????? | | ### #???? ##?????????????????????####?? | | #????? #??????################# ### | | ######?????? ##??????# # | | ##????????????# ##????????# #### ######### =] | | #?????????????????????????# #??# #???????# *% | | ##??????????### ##????????# #??# #???????## = # | | ############ #??????# #?## #????????## # | | ###### ### ###??????## | | ???# k s ######## | | ##### ######?????# @ ss s g%% ## | | ##?????#??????????## #### ### s gssg # < | | #?????????????????????????# #?## ### # | | #?????????????????????????# #??# ##?# | | #?????????????????????????# #?## ##?# # | | #?????????????????????????# ### ####### ## | | ###### #??????????????????# ##???###### | | #??????????????????###### ##???????# | | ## #####???????????????????????#### % ##???????# | | ?# #??????????????????????????????## ##??????? | | ?# #???????????????????????????????## ##?????? | | ## #??????????????????????????####### #???### | | #??????????????????????? ##??# | | ## #?????????????????????? ##?# # | | ?# #######?????????????????############# ### # | | ?# ##############????????????# ##%# | | ?#%##### #????????????# % % | | ?# #???# ############ #????????????#%##### | | ?#%#???# #??????????# #????????????# #???## ### | | ?# #???# ##########?# #????????????# #????# ##?? | | ?# #???# #?#%#####????????# #????## ##??? | | ?# #???# ######## #?# %% #????????# #?????###???? | | ?# #???# #??????# #?##### #????????#%#???????????? | | ?# #???# #??????# #?????# #????????# #???????????? | | ## #???# #?????## ##?#### ##???????# #???????????? | +----------------------------------------------------+ Best States ------------- Heat Dissipation 25 Energy Generation 5 Energy Capacity 100 Matter Stores 300 Matter Capacity 300 Sight Range 16 Terrain Scan Density 10 Evasion (%) 50 Item Schematics ----------------- None Robot Schematics ------------------ None Fabricated ------------ Nothing Repaired ---------- Nothing Studied --------- None Alien Tech Used ----------------- None Achievements -------------- None Challenges ------------ None RPGLIKE | -11 -10 -10 --------- Run | Yrd Mat Min Levels Raised . | . . . XP Earned 3500 | 3000 . 500 XP Spent 2860 | . . 2860 Upgrades 22 | . . 22 Core Integrity 22 | . . 22 Protomatter Created . | . . . Protomatter Decayed 89 | . . 89 Game ------ Seed DynamicLargeGuard Manual? 0 Play Time 00:05:47 Cumulative 557.7 hours Start 2026.01.19 @ 21:55:39 End 2026.01.19 @ 21:58:48 Sessions 1 Manual Loads 0 Difficulty Rogue Special Mode Winter2019/RPGLIKE Game No. 215 Rogue 61 Adventurer 154 Explorer 0 Win Type - Total 20 Types 4/4/3/3/2/1/0/1/1/1 Lore% 95 Gallery% 88 Achievement% 61 Wizard Run 0 Options --------- Layout 0 ASCII 0 Keyboard 0 Movement Numpad Keybinds 0 Fullscreen 2 Font 18/SmallcapsGlow Map View 76x50 Zoom Use 0% Tactical HUD 1 Map Filters NONE Filters NONE Steam 1 RUN: fb16becb-c2ea-483e-b5db-06cdd4de6dac